bitfinex-derivatives/quotes_SOLF0:USTF0_20230902
["timestamp","ask_amount","ask_price","bid_price","bid_amount"]
[1693664602103,111.62,19.421,19.416,0.12447266]
[1693664604011,111.62,19.421,19.412,111.62]
[1693664604211,111.62,19.418,19.41,40.29644878]
[1693664604413,111.62,19.418,19.409,111.62]
[1693664609410,20.8,19.417,19.409,111.62]
[1693664611420,20.8,19.417,19.416,0.06223661]
[1693664612418,20.8,19.417,19.409,111.62]
[1693664613220,20.8,19.417,19.409,152.63338825]
[1693664616724,36.25,19.417,19.409,152.63338825]
[1693664619520,15.45,19.416,19.409,152.63338825]
[1693664620726,20.8,19.417,19.409,152.63338825]
[1693664621927,20.8,19.417,19.41,111.62]
[1693664624730,20.8,19.417,19.409,152.63338825]
[1693664624931,20.8,19.417,19.409,111.62]
[1693664626438,20.8,19.417,19.416,0.06223661]
[1693664630437,36.25,19.417,19.409,111.62]
[1693664630638,15.45,19.416,19.409,111.62]
[1693664631939,127.07,19.416,19.408,111.62]
[1693664634540,111.62,19.416,19.408,111.62]
[1693664641341,111.62,19.413,19.401,41.29829983]
[1693664641535,111.62,19.413,19.405,144.82166467]
[1693664641942,111.62,19.416,19.408,111.62]
[1693664643142,127.07,19.416,19.408,111.62]
[1693664645344,111.62,19.416,19.408,111.62]
[1693664648455,127.07,19.416,19.408,111.62]
[1693664649557,15.45,19.411,19.403,41.8382277]
[1693664649854,0.45454546,19.41,19.404,111.62]
[1693664650050,155.94462137,19.412,19.404,111.62]
[1693664651756,111.62,19.412,19.404,111.62]
[1693664651956,111.62,19.415,19.406,111.62]
[1693664657560,15.45,19.408,19.401,111.62]
[1693664657859,15.45,19.402,19.394,111.62]
[1693664658059,0.45454546,19.401,19.394,111.62]
[1693664658261,15.45,19.399,19.39,111.62]
[1693664660760,111.62,19.4,19.39,111.62]
[1693664663863,0.45454546,19.401,19.393,111.62]
[1693664669674,111.62,19.4,19.391,111.62]
[1693664671972,111.62,19.401,19.392,111.62]
[1693664678468,0.45454546,19.404,19.386,21.51602817]
[1693664678469,15.47,19.396,19.388,111.62]
[1693664679775,111.62,19.397,19.388,111.62]
[1693664681975,111.62,19.398,19.389,111.62]
[1693664692176,111.62,19.397,19.389,111.62]
[1693664692781,111.62,19.397,19.389,153.09216494]
[1693664693176,15.47,19.396,19.389,153.09216494]
[1693664693377,111.62,19.394,19.389,41.47216494]
[1693664693582,111.62,19.394,19.386,174.69479105]
[1693664694985,111.62,19.394,19.386,153.17876288]
[1693664705186,15.47,19.393,19.386,153.17876288]
[1693664705985,111.62,19.394,19.386,153.17876288]
[1693664707894,15.47,19.393,19.386,153.17876288]
[1693664712201,111.62,19.391,19.386,41.55876288]
[1693664712401,111.62,19.391,19.384,111.62]
[1693664712706,111.62,19.391,19.385,9.47321544]
[1693664717407,15.47,19.39,19.385,9.47321544]
[1693664719005,111.62,19.391,19.385,9.47321544]
[1693664733010,111.62,19.394,19.386,111.62]
[1693664736813,15.47,19.393,19.386,111.62]
[1693664737010,111.62,19.394,19.386,111.62]
[1693664737209,15.47,19.393,19.386,111.62]
[1693664742019,111.62,19.393,19.385,111.62]
[1693664749820,111.62,19.393,19.384,41.63298968]
[1693664750024,127.09,19.391,19.383,111.62]
[1693664750326,127.09,19.391,19.384,9.47335254]
[1693664756432,15.47,19.387,19.38,152.74222794]
[1693664756732,15.47,19.387,19.38,111.62]
[1693664757330,111.62,19.388,19.38,111.62]
[1693664762934,111.62,19.386,19.378,78.3323]
[1693664763239,15.47,19.378,19.369,111.62]
[1693664763433,111.62,19.377,19.369,111.62]
[1693664763633,15.47,19.381,19.373,111.62]
[1693664763841,15.47,19.381,19.373,136.46449675]
[1693664764436,111.62,19.378,19.369,111.62]
[1693664764637,127.09,19.378,19.369,111.62]
[1693664764839,111.62,19.378,19.369,111.62]
[1693664777540,0.45454546,19.38,19.369,500.0]
[1693664777739,111.62,19.383,19.375,111.62]
[1693664787346,15.48,19.375,19.362,111.62]
[1693664787652,154.0,19.386,19.362,111.62]
[1693664787653,111.62,19.37,19.362,111.62]
[1693664787852,0.45454546,19.369,19.362,111.62]
[1693664789147,15.48,19.368,19.362,111.62]
[1693664789449,127.1,19.368,19.36,111.62]
[1693664789653,111.62,19.368,19.36,111.62]
[1693664789852,111.62,19.371,19.362,111.62]
[1693664790049,0.45454546,19.37,19.365,111.62]
[1693664790248,0.45454546,19.369,19.362,111.62]
[1693664791952,0.45454546,19.369,19.363,111.62]
[1693664792154,0.45454546,19.37,19.363,111.62]
[1693664793354,111.62,19.368,19.36,111.62]
[1693664797958,111.62,19.371,19.363,111.62]
[1693664798156,15.49,19.372,19.365,111.62]
[1693664800061,111.62,19.373,19.365,111.62]
[1693664804966,111.62,19.375,19.368,111.62]
[1693664808070,111.62,19.378,19.37,111.62]
[1693664811974,111.62,19.38,19.372,111.62]
[1693664812173,112.07454546,19.38,19.372,111.62]
[1693664812369,111.62,19.38,19.372,111.62]
[1693664812667,112.07454546,19.38,19.372,111.62]
[1693664812970,111.62,19.38,19.372,111.62]
[1693664813167,112.07454546,19.38,19.372,111.62]
[1693664813473,111.62,19.38,19.372,111.62]
[1693664813676,112.07454546,19.38,19.372,111.62]
[1693664813873,111.62,19.38,19.372,111.62]
[1693664831989,111.62,19.381,19.374,111.62]
[1693664835485,112.07454546,19.383,19.376,111.62]
[1693664835686,15.48,19.381,19.376,111.62]
[1693664836387,0.45454546,19.382,19.376,111.62]
[1693664840595,127.1,19.381,19.373,111.62]
[1693664840795,111.62,19.381,19.373,111.62]
[1693664845299,15.48,19.381,19.374,111.62]
[1693664857313,111.62,19.382,19.374,111.62]
[1693664861917,152.47036119,19.384,19.376,111.62]
[1693664862215,111.62,19.384,19.376,111.62]
[1693664862816,0.06495196,19.378,19.376,111.62]
[1693664863320,0.06495196,19.378,19.373,111.62]
[1693664901938,0.06495196,19.378,19.372,111.62]
[1693664912049,0.06495196,19.378,19.374,111.62]
[1693664925760,0.06495196,19.378,19.373,111.62]
[1693664932060,0.06495196,19.378,19.374,111.62]
[1693664941972,0.06495196,19.378,19.375,111.62]
[1693664942171,111.62,19.383,19.375,111.62]
[1693664951979,111.62,19.38,19.372,111.62]
[1693664958685,111.62,19.38,19.378,0.06235864]
[1693664966396,127.1,19.381,19.378,0.06235864]
[1693664969293,111.62,19.381,19.378,0.06235864]
[1693664972099,143.97237973,19.382,19.378,0.06235864]
[1693664972598,143.97237973,19.382,19.374,111.62]
[1693664973599,143.97237973,19.382,19.378,0.06235864]
[1693664982006,32.35237973,19.382,19.378,0.06235864]
[1693664986999,152.77642745,19.384,19.378,0.06235864]
[1693664987810,152.77642745,19.384,19.376,111.62]
[1693664988714,152.77642745,19.384,19.378,0.06235864]
[1693665002117,56.63642745,19.384,19.378,0.06235864]
[1693665002418,56.63642745,19.384,19.376,111.62]
[1693665003519,56.63642745,19.384,19.378,0.06235864]
[1693665008321,41.15642745,19.384,19.378,0.06235864]
[1693665008620,111.62,19.386,19.378,0.06235864]
[1693665017727,111.62,19.386,19.377,111.62]
[1693665018828,111.62,19.386,19.378,0.06235863]
[1693665021921,500.0,19.387,19.379,111.62]
[1693665028436,111.62,19.388,19.379,111.62]
[1693665028643,20.1362,19.391,19.384,111.62]
[1693665029043,111.62,19.394,19.384,111.62]
[1693665032146,142.41976568,19.393,19.384,111.62]
[1693665034448,30.79976568,19.393,19.389,111.62]
[1693665036040,292.79430449,19.396,19.389,111.62]
[1693665036241,15.48,19.396,19.389,111.62]
[1693665036850,111.62,19.397,19.389,111.62]
[1693665037050,15.47,19.399,19.392,111.62]
[1693665038251,111.62,19.402,19.394,111.62]
[1693665042046,190.12814248,19.403,19.396,111.62]
[1693665043550,147.9497,19.403,19.396,111.62]
[1693665043751,36.3297,19.403,19.398,111.62]
[1693665043950,15.47,19.403,19.398,111.62]
[1693665044858,127.09,19.409,19.401,111.62]
[1693665045050,111.62,19.412,19.404,111.62]
[1693665049362,131.9005,19.416,19.408,111.62]
[1693665051158,111.62,19.422,19.414,111.62]
[1693665054260,152.58857289,19.422,19.414,111.62]
[1693665055259,306.58857289,19.422,19.414,111.62]
[1693665055459,152.58857289,19.422,19.414,111.62]
[1693665058362,306.58857289,19.422,19.414,111.62]
[1693665061970,111.62,19.42,19.412,111.62]
[1693665062963,265.62,19.42,19.412,111.62]
[1693665063571,654.0,19.417,19.412,111.62]
[1693665063770,654.0,19.417,19.401,0.22727272]
[1693665063771,15.47,19.413,19.406,111.62]
[1693665066169,111.62,19.414,19.406,111.62]
[1693665068673,15.45,19.413,19.406,111.62]
[1693665072077,111.62,19.415,19.408,111.62]
[1693665082086,152.11046882,19.416,19.409,111.62]
[1693665082274,111.62,19.416,19.409,111.62]
[1693665083478,111.62,19.416,19.408,111.62]
[1693665085384,111.62,19.418,19.411,111.62]
[1693665085584,143.12631501,19.422,19.414,111.62]
[1693665086776,111.62,19.422,19.414,111.62]
[1693665092183,111.62,19.423,19.416,111.62]
[1693665096488,111.62,19.423,19.418,0.70472817]
[1693665096689,0.76327045,19.421,19.418,0.70472817]
[1693665098791,0.76327045,19.421,19.42,111.62]
[1693665112095,0.76327045,19.421,19.419,111.62]
[1693665113901,0.76327045,19.421,19.42,111.62]
[1693665117397,0.76327045,19.421,19.42,68.34698028]
[1693665121609,0.76327045,19.421,19.42,68.40920405]
[1693665129017,0.76327045,19.421,19.42,0.06222377]
[1693665148235,0.76327045,19.421,19.39,500.0]
[1693665148236,654.0,19.417,19.39,500.0]
[1693665148534,111.62,19.413,19.404,111.62]
[1693665152134,111.62,19.413,19.396,19.9589]
[1693665152135,15.45,19.413,19.406,111.62]
[1693665156139,15.45,19.413,19.41,0.12451089]
[1693665158144,169.45,19.413,19.406,111.80680371]
[1693665160038,211.52315815,19.413,19.406,111.80680371]
[1693665160348,57.52315815,19.413,19.406,111.80680371]
[1693665161943,111.62,19.413,19.406,0.18680371]
[1693665162546,127.08,19.413,19.406,0.18680371]
[1693665165045,111.62,19.41,19.406,0.18680371]
[1693665165250,111.62,19.41,19.402,111.62]
[1693665172055,111.62,19.412,19.404,111.62]
[1693665181964,111.62,19.409,19.402,111.62]
[1693665184563,111.62,19.412,19.405,111.62]
[1693665191975,15.46,19.413,19.406,111.62]
[1693665193774,152.35776403,19.414,19.406,111.62]
[1693665193974,152.35776403,19.414,19.407,21.9048]
[1693665196371,152.35776403,19.414,19.41,0.06225581]
[1693665207184,15.46,19.413,19.41,0.06225581]
[1693665207381,111.62,19.411,19.41,0.06225581]
[1693665214890,111.62,19.411,19.404,111.62]
[1693665222092,15.46,19.413,19.406,111.62]
[1693665223295,152.35776403,19.414,19.406,111.62]
[1693665225097,15.46,19.413,19.406,111.62]
[1693665226700,15.46,19.413,19.41,0.06225581]
[1693665226894,152.35776403,19.414,19.41,0.06225581]
[1693665227299,15.46,19.413,19.41,0.06225581]
[1693665232003,111.62,19.412,19.41,0.06225581]
[1693665255427,111.62,19.412,19.405,111.62]
[1693665256426,111.62,19.412,19.41,0.06225581]
[1693665256927,111.62,19.411,19.41,0.06225581]
[1693665270342,111.62,19.411,19.403,111.62]
[1693665271342,111.62,19.411,19.41,0.06225581]
[1693665271944,111.62,19.413,19.41,0.06225581]
[1693665272335,111.62,19.412,19.41,0.06225581]
[1693665292166,153.57463917,19.414,19.41,0.06225581]
[1693665304371,111.62,19.411,19.4,111.62]
[1693665304673,111.62,19.408,19.4,111.62]
[1693665312076,111.62,19.408,19.399,111.62]
[1693665315378,153.86742267,19.408,19.399,111.62]
[1693665321985,111.62,19.406,19.398,111.62]
[1693665332893,154.0,19.403,19.381,500.0]
[1693665333087,111.62,19.399,19.391,111.62]
[1693665334888,111.62,19.399,19.383,20.2342]
[1693665335091,111.62,19.396,19.388,111.62]
[1693665335290,111.62,19.392,19.385,111.62]
[1693665342003,111.62,19.391,19.384,111.62]
[1693665347303,111.62,19.39,19.383,131.8542]
[1693665347798,111.62,19.387,19.383,20.2342]
[1693665352204,111.62,19.387,19.38,140.52814979]
[1693665354609,111.62,19.389,19.382,111.62]
[1693665364119,111.62,19.388,19.381,111.62]
[1693665371921,15.47,19.394,19.376,21.037]
[1693665371922,111.62,19.386,19.379,111.62]
[1693665381936,111.62,19.387,19.38,111.62]
[1693665389241,111.62,19.393,19.385,111.62]
[1693665389439,111.62,19.4,19.392,111.62]
[1693665392033,15.47,19.403,19.393,111.62]
[1693665392034,111.62,19.401,19.393,111.62]
[1693665394341,127.09,19.403,19.394,111.62]
[1693665395436,111.62,19.403,19.394,111.62]
[1693665396034,0.45454546,19.404,19.397,111.62]
[1693665399150,31.90066585,19.407,19.4,111.62]
[1693665400044,111.62,19.408,19.4,111.62]
[1693665400452,127.08,19.409,19.401,111.62]
[1693665401950,15.46,19.409,19.402,111.62]
[1693665405352,111.62,19.41,19.402,111.62]
[1693665412149,152.39485831,19.411,19.404,111.62]
[1693665412352,111.62,19.411,19.404,111.62]
[1693665431570,111.62,19.412,19.404,111.62]
[1693665431978,111.62,19.413,19.405,111.62]
[1693665433772,127.08,19.413,19.405,111.62]
[1693665433971,111.62,19.413,19.405,111.62]
[1693665436582,111.62,19.413,19.41,0.0622558]
[1693665438080,127.08,19.413,19.41,0.0622558]
[1693665438281,111.62,19.413,19.41,0.0622558]
[1693665446889,127.08,19.413,19.41,0.0622558]
[1693665447894,15.46,19.413,19.41,0.0622558]
[1693665455591,15.91454546,19.417,19.41,111.6822558]
[1693665455800,111.62,19.418,19.41,111.6822558]
[1693665457398,15.45,19.417,19.41,111.6822558]
[1693665460800,111.62,19.419,19.412,111.62]
[1693665461404,111.62,19.416,19.41,0.0622558]
[1693665464100,111.62,19.419,19.412,111.62]
[1693665464999,152.0937384,19.422,19.414,111.62]
[1693665465203,111.62,19.422,19.414,111.62]
[1693665476307,43.83030796,19.423,19.417,111.62]
[1693665476508,15.45,19.423,19.417,111.62]
[1693665481817,265.62,19.421,19.413,111.62]
[1693665482019,111.62,19.419,19.411,111.62]
[1693665483109,111.62,19.421,19.414,111.62]
[1693665491919,127.07,19.423,19.416,111.62]
[1693665510041,111.62,19.421,19.413,111.62]
[1693665512043,111.62,19.42,19.412,111.62]
[1693665520945,111.62,19.422,19.415,111.62]
[1693665521144,15.45,19.423,19.41,0.06225578]
[1693665521145,15.45,19.423,19.416,111.62]
[1693665530155,152.45213181,19.424,19.416,111.62]
[1693665531449,40.83213181,19.424,19.419,111.62]
[1693665531748,31.15520884,19.425,19.419,111.62]
[1693665531950,31.15520884,19.425,19.42,111.62]
[1693665535358,73.13667124,19.425,19.42,111.62]
[1693665535560,31.15520884,19.425,19.42,111.62]
[1693665538758,111.62,19.433,19.424,111.62]
[1693665538961,111.62,19.433,19.425,111.62]
[1693665539554,127.07,19.433,19.425,111.62]
[1693665541970,127.07,19.433,19.42,20.0288]
[1693665541971,15.45,19.433,19.427,111.62]
[1693665545264,111.62,19.431,19.424,111.62]
[1693665545864,265.62,19.431,19.424,111.62]
[1693665549081,111.62,19.431,19.424,111.62]
[1693665556987,152.50111167,19.431,19.424,111.62]
[1693665561789,306.50111167,19.431,19.424,111.62]
[1693665561992,154.0,19.425,19.419,111.62]
[1693665562189,111.62,19.423,19.416,111.62]
[1693665572002,41.82904221,19.425,19.419,111.62]
[1693665572201,156.46481615,19.426,19.419,111.62]
[1693665575501,154.0,19.425,19.419,111.62]
[1693665581909,154.0,19.425,19.417,111.62]
[1693665582112,15.45,19.423,19.417,111.62]
[1693665588116,111.62,19.423,19.416,111.62]
[1693665591816,265.62,19.423,19.416,111.62]
[1693665592111,111.62,19.421,19.413,111.62]
[1693665599521,111.62,19.42,19.412,111.62]
[1693665601927,111.62,19.421,19.414,111.62]
[1693665611933,111.62,19.42,19.413,111.62]
[1693665614936,0.84707037,19.418,19.413,111.62]
[1693665617736,0.84707037,19.418,19.416,111.62]
[1693665648563,0.84707037,19.418,19.417,111.62]
[1693665652565,112.07454546,19.428,19.417,111.62]
[1693665652763,154.07358785,19.431,19.423,111.62]
[1693665661984,42.45358785,19.431,19.427,111.62]
[1693665664387,154.45454546,19.436,19.43,111.62]
[1693665664388,15.45,19.435,19.43,111.62]
[1693665665883,0.45454546,19.436,19.433,111.62]
[1693665666090,111.62,19.441,19.433,111.62]
[1693665667387,152.26609053,19.441,19.433,111.62]
[1693665668691,306.26609053,19.441,19.433,111.62]
[1693665672086,15.44,19.438,19.431,111.62]
[1693665678497,265.62,19.44,19.432,111.62]
[1693665680803,265.62,19.44,19.434,0.73735973]
[1693665681205,15.44,19.433,19.426,111.62]
[1693665682104,169.44,19.431,19.424,111.62]
[1693665683002,15.44,19.431,19.424,111.62]
[1693665692010,15.44,19.431,19.425,111.62]
[1693665694915,15.44,19.431,19.43,0.12438268]
[1693665706412,15.44,19.431,19.425,111.62]
[1693665708513,15.44,19.431,19.424,111.62]
[1693665709718,15.44,19.431,19.43,0.12438268]
[1693665712914,40.62995367,19.432,19.43,0.12438268]
[1693665713221,111.62,19.433,19.43,0.12438268]
[1693665716923,151.89174471,19.433,19.43,0.12438268]
[1693665717122,167.33174471,19.433,19.43,0.12438268]
[1693665721924,55.71174471,19.433,19.43,0.12438268]
[1693665726632,40.27174471,19.433,19.43,0.12438268]
[1693665726833,41.84596597,19.434,19.43,0.12438268]
[1693665727432,83.27468443,19.434,19.43,0.12438268]
[1693665729235,111.62,19.433,19.43,0.12438268]
[1693665730834,265.62,19.433,19.43,0.12438268]
[1693665731037,265.62,19.431,19.43,0.12438268]
[1693665736838,265.62,19.431,19.423,20.6612]
[1693665737034,111.62,19.428,19.423,20.6612]
[1693665740043,111.62,19.428,19.426,0.18661134]
[1693665745744,153.41196703,19.428,19.426,0.18661134]
[1693665750248,111.62,19.428,19.426,0.18661134]
[1693665750650,111.62,19.43,19.426,0.18661134]
[1693665759456,111.62,19.429,19.426,0.18661134]
[1693665766363,111.62,19.429,19.423,20.6612]
[1693665769667,111.62,19.429,19.426,0.18661134]
[1693665779970,152.46860967,19.431,19.426,0.18661134]
[1693665780273,111.62,19.431,19.426,0.18661134]
[1693665781979,127.06,19.433,19.426,111.80661134]
[1693665782179,111.62,19.433,19.426,111.80661134]
[1693665783079,127.06,19.433,19.426,111.80661134]
[1693665787183,111.62,19.433,19.426,111.80661134]
[1693665789586,153.04871846,19.434,19.427,111.62]
[1693665790887,127.06,19.438,19.43,111.62]
[1693665791087,127.06,19.438,19.426,0.18661134]
[1693665791088,152.93803073,19.44,19.433,111.62]
[1693665791990,194.5808511,19.44,19.433,111.62]
[1693665799688,194.5808511,19.44,19.434,0.06217889]
[1693665812000,82.9608511,19.44,19.434,111.68217889]
[1693665812392,82.9608511,19.44,19.436,111.62]
[1693665812896,41.31803073,19.44,19.436,111.62]
[1693665813395,40.31291815,19.442,19.431,20.0572]
[1693665813593,0.45454546,19.447,19.441,111.62]
[1693665816402,15.43,19.446,19.441,111.62]
[1693665817695,16.27120131,19.446,19.441,111.62]
[1693665819903,0.84120131,19.446,19.441,111.62]
[1693665829005,0.84120131,19.446,19.442,111.62]
[1693665829805,151.97820894,19.448,19.442,111.62]
[1693665830804,0.72657097,19.447,19.442,111.62]
[1693665835611,15.43,19.446,19.442,111.62]
[1693665841111,15.43,19.446,19.443,111.62]
[1693665842020,40.35820894,19.448,19.442,111.62]
[1693665842316,112.07454546,19.449,19.442,111.62]
[1693665842719,0.80387245,19.446,19.442,111.62]
[1693665851726,0.80387245,19.446,19.445,111.62]
[1693665852622,41.27389696,19.449,19.445,111.62]
[1693665853426,0.84146011,19.447,19.445,111.62]
[1693665856129,0.84146011,19.447,19.446,111.62]
[1693665861931,0.84146011,19.447,19.445,111.62]
[1693665863230,0.84146011,19.447,19.446,111.62]
[1693665874335,154.0,19.462,19.446,111.62]
[1693665874634,111.62,19.468,19.46,111.62]
[1693665874834,40.56760924,19.468,19.463,111.62]
[1693665875442,858.36476464,19.48,19.447,433.993294]
[1693665875443,154.0,19.478,19.447,433.993294]
[1693665875641,0.45454546,19.47,19.469,111.62]
[1693665876132,111.62,19.473,19.466,111.62]
[1693665877034,48.48999269,19.476,19.47,111.62]
[1693665877738,6.92319469,19.475,19.47,111.62]
[1693665878642,48.48999269,19.476,19.47,111.62]
[1693665880644,48.48999269,19.476,19.472,111.62]
[1693665882038,48.48999269,19.476,19.47,111.62]
[1693665883048,6.92370288,19.476,19.472,111.62]
[1693665884448,6.92370288,19.476,19.47,111.62]
[1693665887253,6.92370288,19.476,19.471,20.2536]
[1693665889355,6.92370288,19.476,19.473,111.62]
[1693665892747,6.92370288,19.476,19.475,111.62]
[1693665892942,30.26064889,19.483,19.475,111.62]
[1693665893141,30.26064889,19.483,19.479,111.62]
[1693665894054,71.55561291,19.483,19.479,111.62]
[1693665894248,30.26064889,19.483,19.479,111.62]
[1693665895352,30.26064889,19.483,19.48,111.62]
[1693665897358,30.26064889,19.483,19.478,111.62]
[1693665899963,40.86773486,19.486,19.481,111.62]
[1693665900156,6.38433298,19.485,19.481,111.62]
[1693665900357,6.38433298,19.485,19.484,111.62]
[1693665900955,6.38433298,19.485,19.481,111.62]
[1693665902260,15.4,19.484,19.481,111.62]
[1693665902459,15.4,19.485,19.481,111.62]
[1693665905759,15.4,19.485,19.471,20.2536]
[1693665905960,194.74370826,19.486,19.475,111.62]
[1693665905961,15.4,19.48,19.475,111.62]
[1693665906160,15.4,19.48,19.454,500.0]
[1693665906161,154.0,19.475,19.454,500.0]
[1693665906364,154.0,19.475,19.469,111.62]
[1693665906564,111.62,19.476,19.469,111.62]
[1693665906961,111.62,19.476,19.472,0.12411442]
[1693665906962,265.62,19.476,19.472,0.12411442]
[1693665907156,111.62,19.476,19.472,0.12411442]
[1693665907358,111.62,19.48,19.472,111.74411442]
[1693665909768,152.56915253,19.48,19.472,111.74411442]
[1693665910365,15.4,19.482,19.475,111.62]
[1693665911465,15.4,19.478,19.473,20.9888]
[1693665911770,15.4,19.478,19.472,111.74411442]
[1693665913769,154.0,19.476,19.472,0.12411442]
[1693665914767,111.62,19.477,19.472,0.12411442]
[1693665916474,265.62,19.477,19.469,111.62]
[1693665917267,111.62,19.475,19.468,111.62]
[1693665920871,111.62,19.475,19.473,0.18616109]
[1693665921675,0.45454546,19.48,19.473,0.18616109]
[1693665921880,111.62,19.475,19.473,0.18616109]
[1693665927982,111.62,19.479,19.473,0.18616109]
[1693665930589,15.4,19.478,19.473,0.18616109]
[1693665932289,111.62,19.478,19.473,0.18616109]
[1693665932489,111.62,19.478,19.471,111.62]
[1693665934888,111.68202888,19.481,19.474,111.62]
[1693665936992,111.68202888,19.481,19.477,0.12408256]
[1693665939794,0.06202888,19.481,19.478,111.62]
[1693665942197,111.62,19.485,19.478,111.62]
[1693665942493,140.9718233,19.489,19.481,111.62]
[1693665942803,6.38345775,19.488,19.481,111.62]
[1693665947003,15.4,19.487,19.481,111.62]
[1693665947198,140.9718233,19.489,19.481,111.62]
[1693665947395,15.4,19.487,19.481,111.62]
[1693665947595,140.9718233,19.489,19.481,111.62]
[1693665947796,15.4,19.487,19.481,111.62]
[1693665948100,140.9718233,19.489,19.481,111.62]
[1693665948297,15.4,19.487,19.481,111.62]
[1693665948496,140.9718233,19.489,19.481,111.62]
[1693665948799,15.4,19.487,19.481,111.62]
[1693665949000,140.9718233,19.489,19.481,111.62]
[1693665949200,15.4,19.487,19.481,111.62]
[1693665949392,140.9718233,19.489,19.481,111.62]
[1693665949698,15.4,19.487,19.481,111.62]
[1693665949898,140.9718233,19.489,19.481,111.62]
[1693665950099,15.4,19.487,19.481,111.62]
[1693665950301,140.9718233,19.489,19.481,111.62]
[1693665950501,15.4,19.487,19.481,111.62]
[1693665950802,140.9718233,19.489,19.481,111.62]
[1693665951000,6.38338644,19.488,19.481,111.62]
[1693665953495,6.38338644,19.488,19.481,111.68202877]
[1693665957904,40.38193017,19.49,19.484,111.62]
[1693665958104,111.62,19.491,19.484,111.62]
[1693665958305,6.38136502,19.49,19.484,111.62]
[1693665962009,118.00136502,19.49,19.482,111.62]
[1693665962205,6.38136502,19.489,19.482,111.62]
[1693665962709,111.62,19.49,19.482,111.62]
[1693665963104,6.38195896,19.489,19.482,111.62]
[1693665964413,111.62,19.487,19.478,21.4255]
[1693665964607,111.62,19.487,19.48,111.62]
[1693665965006,265.62,19.487,19.48,111.62]
[1693665966010,111.62,19.487,19.48,111.62]
[1693665967012,154.0,19.486,19.48,111.62]
[1693665967211,111.62,19.487,19.48,111.62]
[1693665968214,111.62,19.487,19.481,0.06202866]
[1693665972016,15.39,19.487,19.481,111.68202866]
[1693665973620,154.0,19.484,19.481,0.06202866]
[1693665974018,111.62,19.485,19.481,0.06202866]
[1693665977320,265.62,19.485,19.481,0.06202866]
[1693665977520,265.62,19.485,19.477,111.62]
[1693665978610,0.06202549,19.482,19.477,111.62]
[1693665983030,0.06202549,19.482,19.478,0.12407578]
[1693665997328,0.06202549,19.482,19.48,111.62]
[1693665997830,40.53388089,19.485,19.48,111.62]
[1693665998026,111.62,19.487,19.48,111.62]
[1693666008649,0.06202539,19.482,19.48,111.62]
[1693666010450,0.06202539,19.482,19.481,111.62]
[1693666012245,218.07959019,19.492,19.481,111.62]
[1693666012447,111.62,19.492,19.485,111.62]